[Event "Titled Tuesday Blitz February 07 Early 2023"]
[White "Oro, Faustino"]
[Black "Sowul, Bartosz"]
[WhiteFideId "20000197"]
[BlackFideId "1137590"]
[WhiteElo "2269"]
[BlackElo "2269"]
[Result "1-0"]
[Round "02"]
[TimeControl "180+2"]
[Date "2023.02.07"]
[WhiteClock "0:00:53"]
[BlackClock "0:00:09"]

1. e4 {[%clk 0:03:00]}  c5 {[%clk 0:03:00]} 2. Nf3 {[%clk 0:03:00]}  d6 {[%clk 0:03:00]} 3. d4 {[%clk 0:03:00]}  cxd4 {[%clk 0:03:01]} 4. Nxd4 {[%clk 0:03:01]}  Nf6 {[%clk 0:03:01]} 5. Nc3 {[%clk 0:03:01]}  Nc6 {[%clk 0:03:02]} 6. f3 {[%clk 0:03:00]}  e5 {[%clk 0:03:02]} 7. Nb3 {[%clk 0:03:00]}  Be7 {[%clk 0:03:02]} 8. Be3 {[%clk 0:02:59]}  O-O {[%clk 0:03:02]} 9. Qd2 {[%clk 0:02:59]}  a5 {[%clk 0:03:01]} 10. Bb5 {[%clk 0:02:56]}  Be6 {[%clk 0:02:52]} 11. Nd5 {[%clk 0:02:54]}  Bxd5 {[%clk 0:02:38]} 12. exd5 {[%clk 0:02:53]}  Nb4 {[%clk 0:02:39]} 13. c4 {[%clk 0:02:49]}  Nh5 {[%clk 0:02:19]} 14. O-O {[%clk 0:02:39]}  f5 {[%clk 0:02:15]} 15. a3 {[%clk 0:02:34]}  Na6 {[%clk 0:02:12]} 16. Nxa5 {[%clk 0:02:18]}  Nc5 {[%clk 0:01:51]} 17. Bxc5 {[%clk 0:02:08]}  Rxa5 {[%clk 0:01:42]} 18. Be3 {[%clk 0:02:03]}  Ra8 {[%clk 0:01:37]} 19. b4 {[%clk 0:02:02]}  Bf6 {[%clk 0:01:25]} 20. Ra2 {[%clk 0:01:53]}  f4 {[%clk 0:01:23]} 21. Bf2 {[%clk 0:01:52]}  e4 {[%clk 0:01:15]} 22. fxe4 {[%clk 0:01:50]}  Be5 {[%clk 0:01:13]} 23. c5 {[%clk 0:01:32]}  f3 {[%clk 0:00:58]} 24. g3 {[%clk 0:01:30]}  Nf6 {[%clk 0:00:53]} 25. Qg5 {[%clk 0:01:02]}  Qc8 {[%clk 0:00:44]} 26. Qf5 {[%clk 0:00:56]}  Qd8 {[%clk 0:00:33]} 27. cxd6 {[%clk 0:00:55]}  Bxd6 {[%clk 0:00:13]} 28. e5 {[%clk 0:00:53]}  Nxd5 {[%clk 0:00:09]} 29. Qe6+ {[%clk 0:00:53]} 1-0


[Site "https://www.chess.com"]

[Event "Titled Tuesday Blitz February 07 Early 2023"]
[White "Lucassen, Mickey"]
[Black "Ajay, Karthikeyan"]
[WhiteFideId "12919110"]
[BlackFideId "35011685"]
[WhiteElo "2023"]
[BlackElo "2454"]
[Result "0-1"]
[Round "02"]
[TimeControl "180+2"]
[Date "2023.02.07"]
[WhiteClock "0:00:15"]
[BlackClock "0:00:11"]

1. d4 {[%clk 0:03:00]}  Nf6 {[%clk 0:02:58]} 2. Nf3 {[%clk 0:03:00]}  g6 {[%clk 0:02:58]} 3. Nc3 {[%clk 0:02:59]}  Bg7 {[%clk 0:02:56]} 4. e4 {[%clk 0:02:59]}  d6 {[%clk 0:02:56]} 5. Be2 {[%clk 0:02:59]}  O-O {[%clk 0:02:57]} 6. O-O {[%clk 0:03:00]}  Nc6 {[%clk 0:02:56]} 7. h3 {[%clk 0:03:00]}  e5 {[%clk 0:02:55]} 8. d5 {[%clk 0:02:59]}  Ne7 {[%clk 0:02:55]} 9. Ne1 {[%clk 0:02:58]}  Nd7 {[%clk 0:02:55]} 10. Nd3 {[%clk 0:02:58]}  f5 {[%clk 0:02:55]} 11. f3 {[%clk 0:02:58]}  f4 {[%clk 0:02:55]} 12. Rf2 {[%clk 0:02:51]}  g5 {[%clk 0:02:55]} 13. Bf1 {[%clk 0:02:51]}  h5 {[%clk 0:02:55]} 14. Na4 {[%clk 0:02:38]}  Nf6 {[%clk 0:02:53]} 15. c4 {[%clk 0:02:25]}  b6 {[%clk 0:02:48]} 16. b4 {[%clk 0:02:24]}  Ng6 {[%clk 0:02:49]} 17. c5 {[%clk 0:02:21]}  Rf7 {[%clk 0:02:48]} 18. Rc2 {[%clk 0:02:16]}  g4 {[%clk 0:02:47]} 19. cxd6 {[%clk 0:01:49]}  cxd6 {[%clk 0:02:47]} 20. Nc3 {[%clk 0:01:45]}  Bf8 {[%clk 0:02:37]} 21. a4 {[%clk 0:01:44]}  Rg7 {[%clk 0:02:26]} 22. Kh1 {[%clk 0:01:40]}  gxh3 {[%clk 0:01:57]} 23. gxh3 {[%clk 0:01:39]}  Nh4 {[%clk 0:01:58]} 24. a5 {[%clk 0:01:24]}  Rg3 {[%clk 0:01:55]} 25. Nxf4 {[%clk 0:01:16]}  exf4 {[%clk 0:01:42]} 26. Bxf4 {[%clk 0:01:15]}  Rxf3 {[%clk 0:01:43]} 27. Bg5 {[%clk 0:01:15]}  Bxh3 {[%clk 0:01:44]} 28. Be2 {[%clk 0:01:09]}  Bg2+ {[%clk 0:01:29]} 29. Kg1 {[%clk 0:01:07]}  Rh3 {[%clk 0:01:25]} 30. Bxh4 {[%clk 0:01:03]}  Rh1+ {[%clk 0:01:21]} 31. Kxg2 {[%clk 0:01:03]}  Rxd1 {[%clk 0:01:19]} 32. Bxd1 {[%clk 0:00:59]}  Be7 {[%clk 0:01:12]} 33. Kh2 {[%clk 0:00:55]}  Ng4+ {[%clk 0:00:54]} 34. Bxg4 {[%clk 0:00:54]}  Bxh4 {[%clk 0:00:50]} 35. Bxh5 {[%clk 0:00:45]}  Bf6 {[%clk 0:00:37]} 36. Rg1+ {[%clk 0:00:43]}  Kh8 {[%clk 0:00:36]} 37. Ne2 {[%clk 0:00:32]}  Be5+ {[%clk 0:00:34]} 38. Kh3 {[%clk 0:00:32]}  Rc8 {[%clk 0:00:33]} 39. Rd2 {[%clk 0:00:20]}  Qd7+ {[%clk 0:00:28]} 40. Bg4 {[%clk 0:00:20]}  Qh7+ {[%clk 0:00:28]} 41. Kg2 {[%clk 0:00:19]}  Qh2+ {[%clk 0:00:26]} 42. Kf3 {[%clk 0:00:18]}  Rc3+ {[%clk 0:00:18]} 43. Nxc3 {[%clk 0:00:17]}  Qxg1 {[%clk 0:00:19]} 44. Ne2 {[%clk 0:00:16]}  Qf1+ {[%clk 0:00:17]} 45. Ke3 {[%clk 0:00:16]}  Qb1 {[%clk 0:00:10]} 46. Bf5 {[%clk 0:00:15]}  Qb3+ {[%clk 0:00:10]} 47. Kf2 {[%clk 0:00:15]}  Qxb4 {[%clk 0:00:10]} 48. Rd3 {[%clk 0:00:15]}  Qxa5 {[%clk 0:00:11]} 49. Rh3+ {[%clk 0:00:15]}  Kg7 {[%clk 0:00:11]} 50. Rh6 {[%clk 0:00:15]}  Kxh6 {[%clk 0:00:11]} 0-1


[Site "https://www.chess.com"]

[Event "Titled Tuesday Blitz February 07 Early 2023"]
[White "Weetik, Vjacheslav"]
[Black "Szyszylo, Rafal"]
[WhiteFideId "4153472"]
[BlackFideId "1109626"]
[WhiteElo "2423"]
[BlackElo "2091"]
[Result "1-0"]
[Round "02"]
[TimeControl "180+2"]
[Date "2023.02.07"]
[WhiteClock "0:00:45"]
[BlackClock "0:01:00"]

1. d4 {[%clk 0:02:58]}  d6 {[%clk 0:02:59]} 2. e4 {[%clk 0:02:57]}  Nf6 {[%clk 0:02:58]} 3. Nc3 {[%clk 0:02:57]}  g6 {[%clk 0:02:58]} 4. Nf3 {[%clk 0:02:52]}  Bg7 {[%clk 0:02:58]} 5. Be2 {[%clk 0:02:52]}  Bg4 {[%clk 0:02:58]} 6. Be3 {[%clk 0:02:43]}  O-O {[%clk 0:02:55]} 7. O-O {[%clk 0:02:38]}  Nc6 {[%clk 0:02:44]} 8. d5 {[%clk 0:02:30]}  Bxf3 {[%clk 0:02:43]} 9. gxf3 {[%clk 0:02:30]}  Ne5 {[%clk 0:02:40]} 10. f4 {[%clk 0:02:30]}  Ned7 {[%clk 0:02:40]} 11. Kh1 {[%clk 0:02:29]}  Re8 {[%clk 0:02:28]} 12. f5 {[%clk 0:02:28]}  e6 {[%clk 0:02:19]} 13. dxe6 {[%clk 0:02:24]}  fxe6 {[%clk 0:02:20]} 14. fxe6 {[%clk 0:02:13]}  Ne5 {[%clk 0:02:19]} 15. f4 {[%clk 0:02:09]}  Nc6 {[%clk 0:02:19]} 16. f5 {[%clk 0:02:08]}  Ne5 {[%clk 0:02:15]} 17. Bg5 {[%clk 0:02:04]}  h6 {[%clk 0:02:06]} 18. Bxf6 {[%clk 0:01:57]}  Qxf6 {[%clk 0:02:05]} 19. Nd5 {[%clk 0:01:57]}  Qh4 {[%clk 0:02:01]} 20. f6 {[%clk 0:01:42]}  Qxe4+ {[%clk 0:01:54]} 21. Bf3 {[%clk 0:01:42]}  Nxf3 {[%clk 0:01:54]} 22. Qxf3 {[%clk 0:01:42]}  Rxe6 {[%clk 0:01:42]} 23. Nxc7 {[%clk 0:01:21]}  Qxf3+ {[%clk 0:01:38]} 24. Rxf3 {[%clk 0:01:21]}  Bxf6 {[%clk 0:01:18]} 25. Nxe6 {[%clk 0:01:20]}  Bxb2 {[%clk 0:01:17]} 26. Rb1 {[%clk 0:01:19]}  Be5 {[%clk 0:01:16]} 27. Rxb7 {[%clk 0:01:18]}  Re8 {[%clk 0:01:15]} 28. Nc7 {[%clk 0:00:56]}  Rc8 {[%clk 0:01:08]} 29. Rxa7 {[%clk 0:00:50]}  d5 {[%clk 0:01:00]} 30. Nxd5 {[%clk 0:00:49]}  Rxc2 {[%clk 0:01:00]} 31. Ne7+ {[%clk 0:00:45]} 1-0


[Site "https://www.chess.com"]

[Event "Titled Tuesday Blitz February 07 Early 2023"]
[White "McBryde, Lamel"]
[Black "Fiorito, Joaquin"]
[WhiteFideId "2058596"]
[BlackFideId "180173"]
[WhiteElo "1861"]
[BlackElo "2405"]
[Result "1-0"]
[Round "02"]
[TimeControl "180+2"]
[Date "2023.02.07"]
[WhiteClock "0:00:03"]
[BlackClock "0:00:03"]

1. Nf3 {[%clk 0:02:52]}  d5 {[%clk 0:02:59]} 2. b3 {[%clk 0:02:48]}  c5 {[%clk 0:02:59]} 3. Bb2 {[%clk 0:02:49]}  f6 {[%clk 0:02:59]} 4. e3 {[%clk 0:02:45]}  e5 {[%clk 0:02:58]} 5. d3 {[%clk 0:02:44]}  Nc6 {[%clk 0:02:57]} 6. Nbd2 {[%clk 0:02:45]}  Be6 {[%clk 0:02:57]} 7. c4 {[%clk 0:02:45]}  Nge7 {[%clk 0:02:57]} 8. a3 {[%clk 0:02:44]}  g6 {[%clk 0:02:49]} 9. Qc2 {[%clk 0:02:40]}  Bg7 {[%clk 0:02:49]} 10. cxd5 {[%clk 0:02:40]}  Qxd5 {[%clk 0:02:49]} 11. Rc1 {[%clk 0:02:37]}  b6 {[%clk 0:02:48]} 12. d4 {[%clk 0:02:32]}  exd4 {[%clk 0:02:47]} 13. exd4 {[%clk 0:02:18]}  cxd4 {[%clk 0:02:42]} 14. Bc4 {[%clk 0:02:11]}  Qd7 {[%clk 0:02:40]} 15. O-O {[%clk 0:02:09]}  O-O {[%clk 0:02:13]} 16. Rfe1 {[%clk 0:01:57]}  Bxc4 {[%clk 0:01:51]} 17. Qxc4+ {[%clk 0:01:56]}  Kh8 {[%clk 0:01:50]} 18. Rcd1 {[%clk 0:01:22]}  Rad8 {[%clk 0:01:44]} 19. b4 {[%clk 0:01:05]}  Nf5 {[%clk 0:01:29]} 20. Nb3 {[%clk 0:00:50]}  Ne5 {[%clk 0:01:21]} 21. Qe2 {[%clk 0:00:45]}  d3 {[%clk 0:00:59]} 22. Qe4 {[%clk 0:00:42]}  Nxf3+ {[%clk 0:00:54]} 23. Qxf3 {[%clk 0:00:43]}  Rfe8 {[%clk 0:00:32]} 24. Rxe8+ {[%clk 0:00:40]}  Rxe8 {[%clk 0:00:31]} 25. g3 {[%clk 0:00:41]}  Rd8 {[%clk 0:00:29]} 26. Nc1 {[%clk 0:00:32]}  d2 {[%clk 0:00:25]} 27. Nb3 {[%clk 0:00:32]}  Re8 {[%clk 0:00:17]} 28. Rxd2 {[%clk 0:00:31]}  Qe6 {[%clk 0:00:17]} 29. Kg2 {[%clk 0:00:23]}  Kg8 {[%clk 0:00:16]} 30. Nd4 {[%clk 0:00:19]}  Qd7 {[%clk 0:00:16]} 31. Bc3 {[%clk 0:00:17]}  Nxd4 {[%clk 0:00:13]} 32. Rxd4 {[%clk 0:00:18]}  Qe6 {[%clk 0:00:13]} 33. Qb7 {[%clk 0:00:14]}  Re7 {[%clk 0:00:12]} 34. Rd8+ {[%clk 0:00:14]}  Kf7 {[%clk 0:00:12]} 35. Qa8 {[%clk 0:00:13]}  g5 {[%clk 0:00:12]} 36. h4 {[%clk 0:00:06]}  gxh4 {[%clk 0:00:12]} 37. gxh4 {[%clk 0:00:06]}  Qg4+ {[%clk 0:00:12]} 38. Kf1 {[%clk 0:00:07]}  Qxh4 {[%clk 0:00:10]} 39. Qd5+ {[%clk 0:00:05]}  Kg6 {[%clk 0:00:09]} 40. Qd3+ {[%clk 0:00:03]}  f5 {[%clk 0:00:07]} 41. Rd6+ {[%clk 0:00:03]}  Kf7 {[%clk 0:00:02]} 42. Qd5+ {[%clk 0:00:03]}  Ke8 {[%clk 0:00:03]} 43. Rd8# {[%clk 0:00:03]} 1-0


[Site "https://www.chess.com"]

[Event "Titled Tuesday Blitz February 07 Early 2023"]
[White "Perez Rodriguez, Jennifer"]
[Black "Darini, Pouria"]
[WhiteFideId "3507831"]
[BlackFideId "12502200"]
[WhiteElo "2242"]
[BlackElo "2401"]
[Result "1/2-1/2"]
[Round "02"]
[TimeControl "180+2"]
[Date "2023.02.07"]
[WhiteClock "0:00:04"]
[BlackClock "0:00:12"]

1. e4 {[%clk 0:02:57]}  e5 {[%clk 0:02:59]} 2. Nf3 {[%clk 0:02:56]}  Nc6 {[%clk 0:03:00]} 3. Bc4 {[%clk 0:02:56]}  Bc5 {[%clk 0:02:59]} 4. d4 {[%clk 0:02:49]}  Bxd4 {[%clk 0:02:54]} 5. Nxd4 {[%clk 0:02:47]}  Nxd4 {[%clk 0:02:55]} 6. O-O {[%clk 0:02:48]}  Nf6 {[%clk 0:02:36]} 7. f4 {[%clk 0:02:45]}  d6 {[%clk 0:02:34]} 8. fxe5 {[%clk 0:02:46]}  dxe5 {[%clk 0:02:35]} 9. Bg5 {[%clk 0:02:46]}  Be6 {[%clk 0:02:34]} 10. Nd2 {[%clk 0:02:24]}  Qe7 {[%clk 0:02:22]} 11. c3 {[%clk 0:02:14]}  Bxc4 {[%clk 0:01:49]} 12. Nxc4 {[%clk 0:02:13]}  Ne6 {[%clk 0:01:50]} 13. Bxf6 {[%clk 0:01:59]}  gxf6 {[%clk 0:01:33]} 14. Ne3 {[%clk 0:01:51]}  Qc5 {[%clk 0:01:29]} 15. Qf3 {[%clk 0:01:49]}  O-O-O {[%clk 0:01:11]} 16. Kh1 {[%clk 0:01:47]}  Kb8 {[%clk 0:00:33]} 17. Nd5 {[%clk 0:01:38]}  Ng5 {[%clk 0:00:30]} 18. Qe3 {[%clk 0:01:15]}  Qxe3 {[%clk 0:00:29]} 19. Nxe3 {[%clk 0:01:14]}  Nxe4 {[%clk 0:00:30]} 20. Ng4 {[%clk 0:01:11]}  Rhg8 {[%clk 0:00:09]} 21. Nxf6 {[%clk 0:00:56]}  Nxf6 {[%clk 0:00:10]} 22. Rxf6 {[%clk 0:00:56]}  Rd2 {[%clk 0:00:11]} 23. g3 {[%clk 0:00:57]}  Rxb2 {[%clk 0:00:11]} 24. Rxf7 {[%clk 0:00:57]}  h5 {[%clk 0:00:09]} 25. Rh7 {[%clk 0:00:54]}  a5 {[%clk 0:00:05]} 26. Rxh5 {[%clk 0:00:53]}  Re8 {[%clk 0:00:05]} 27. Re1 {[%clk 0:00:45]}  Rxa2 {[%clk 0:00:05]} 28. Rhxe5 {[%clk 0:00:46]}  Rxe5 {[%clk 0:00:05]} 29. Rxe5 {[%clk 0:00:46]}  a4 {[%clk 0:00:05]} 30. h4 {[%clk 0:00:42]}  a3 {[%clk 0:00:06]} 31. Ra5 {[%clk 0:00:42]}  b6 {[%clk 0:00:05]} 32. Ra4 {[%clk 0:00:41]}  Kb7 {[%clk 0:00:02]} 33. c4 {[%clk 0:00:38]}  c6 {[%clk 0:00:02]} 34. h5 {[%clk 0:00:38]}  b5 {[%clk 0:00:03]} 35. cxb5 {[%clk 0:00:38]}  cxb5 {[%clk 0:00:04]} 36. Ra5 {[%clk 0:00:38]}  Kb6 {[%clk 0:00:04]} 37. Ra8 {[%clk 0:00:38]}  Kb7 {[%clk 0:00:05]} 38. Ra5 {[%clk 0:00:33]}  Kb6 {[%clk 0:00:05]} 39. Ra8 {[%clk 0:00:33]}  Kb7 {[%clk 0:00:06]} 40. h6 {[%clk 0:00:22]}  Kxa8 {[%clk 0:00:04]} 41. h7 {[%clk 0:00:22]}  Rb2 {[%clk 0:00:02]} 42. h8=Q+ {[%clk 0:00:21]}  Kb7 {[%clk 0:00:03]} 43. Qg7+ {[%clk 0:00:21]}  Kb6 {[%clk 0:00:03]} 44. Qf6+ {[%clk 0:00:20]}  Ka5 {[%clk 0:00:04]} 45. Qd8+ {[%clk 0:00:19]}  Kb4 {[%clk 0:00:04]} 46. Qe7+ {[%clk 0:00:20]}  Kb3 {[%clk 0:00:04]} 47. Qe6+ {[%clk 0:00:19]}  Ka4 {[%clk 0:00:05]} 48. Qa6+ {[%clk 0:00:19]}  Kb4 {[%clk 0:00:06]} 49. Qd6+ {[%clk 0:00:19]}  Kb3 {[%clk 0:00:06]} 50. Qd5+ {[%clk 0:00:19]}  Ka4 {[%clk 0:00:07]} 51. Qa8+ {[%clk 0:00:18]}  Kb4 {[%clk 0:00:06]} 52. Qf8+ {[%clk 0:00:17]}  Kb3 {[%clk 0:00:07]} 53. Qf7+ {[%clk 0:00:16]}  Kc3 {[%clk 0:00:05]} 54. Qf6+ {[%clk 0:00:16]}  Kc2 {[%clk 0:00:05]} 55. Qf5+ {[%clk 0:00:17]}  Kc1 {[%clk 0:00:05]} 56. Qc5+ {[%clk 0:00:15]}  Kb1 {[%clk 0:00:05]} 57. Qxa3 {[%clk 0:00:15]}  b4 {[%clk 0:00:06]} 58. Qd3+ {[%clk 0:00:14]}  Ka2 {[%clk 0:00:06]} 59. g4 {[%clk 0:00:14]}  b3 {[%clk 0:00:07]} 60. g5 {[%clk 0:00:13]}  Rc2 {[%clk 0:00:05]} 61. g6 {[%clk 0:00:10]}  Rc1+ {[%clk 0:00:06]} 62. Kh2 {[%clk 0:00:09]}  b2 {[%clk 0:00:07]} 63. Qa6+ {[%clk 0:00:08]}  Kb3 {[%clk 0:00:07]} 64. Qb5+ {[%clk 0:00:07]}  Kc3 {[%clk 0:00:08]} 65. Qc6+ {[%clk 0:00:02]}  Kb3 {[%clk 0:00:09]} 66. Qb5+ {[%clk 0:00:03]}  Ka2 {[%clk 0:00:09]} 67. Qa4+ {[%clk 0:00:03]}  Kb1 {[%clk 0:00:09]} 68. g7 {[%clk 0:00:04]}  Rc2+ {[%clk 0:00:10]} 69. Qxc2+ {[%clk 0:00:03]}  Kxc2 {[%clk 0:00:10]} 70. g8=Q {[%clk 0:00:04]}  b1=Q {[%clk 0:00:11]} 71. Qg6+ {[%clk 0:00:03]}  Kb2 {[%clk 0:00:11]} 72. Qxb1+ {[%clk 0:00:04]}  Kxb1 {[%clk 0:00:12]} 1/2-1/2


[Site "https://www.chess.com"]

[Event "Titled Tuesday Blitz February 07 Early 2023"]
[White "Seo, Jung Min"]
[Black "Rose, Felix"]
[WhiteFideId "1734687"]
[BlackFideId "5105722"]
[WhiteElo "2494"]
[BlackElo "2091"]
[Result "1-0"]
[Round "02"]
[TimeControl "180+2"]
[Date "2023.02.07"]
[WhiteClock "0:00:54"]
[BlackClock "0:00:03"]

1. e4 {[%clk 0:02:59]}  e5 {[%clk 0:02:59]} 2. Nf3 {[%clk 0:02:59]}  Nc6 {[%clk 0:02:59]} 3. Nc3 {[%clk 0:02:58]}  Nf6 {[%clk 0:02:59]} 4. Bb5 {[%clk 0:02:58]}  Bb4 {[%clk 0:02:59]} 5. O-O {[%clk 0:02:57]}  O-O {[%clk 0:02:59]} 6. d3 {[%clk 0:02:54]}  d6 {[%clk 0:03:00]} 7. Ne2 {[%clk 0:02:53]}  h6 {[%clk 0:02:47]} 8. c3 {[%clk 0:02:52]}  Ba5 {[%clk 0:02:46]} 9. Ng3 {[%clk 0:02:52]}  Ne7 {[%clk 0:02:42]} 10. d4 {[%clk 0:02:51]}  c6 {[%clk 0:02:40]} 11. Bd3 {[%clk 0:02:47]}  Bc7 {[%clk 0:02:40]} 12. h3 {[%clk 0:02:46]}  Ng6 {[%clk 0:02:40]} 13. Re1 {[%clk 0:02:46]}  Re8 {[%clk 0:02:34]} 14. Bc2 {[%clk 0:02:38]}  Be6 {[%clk 0:02:24]} 15. Be3 {[%clk 0:02:38]}  Qd7 {[%clk 0:02:21]} 16. Qd2 {[%clk 0:02:37]}  a6 {[%clk 0:02:13]} 17. a3 {[%clk 0:02:35]}  Rad8 {[%clk 0:02:10]} 18. Rad1 {[%clk 0:02:35]}  Qe7 {[%clk 0:02:05]} 19. Qc1 {[%clk 0:02:34]}  Qf8 {[%clk 0:02:04]} 20. b3 {[%clk 0:02:25]}  Bc8 {[%clk 0:02:03]} 21. c4 {[%clk 0:02:24]}  exd4 {[%clk 0:01:41]} 22. Bxd4 {[%clk 0:02:23]}  Ne5 {[%clk 0:01:38]} 23. Nh2 {[%clk 0:02:15]}  Nfd7 {[%clk 0:01:23]} 24. Nhf1 {[%clk 0:02:11]}  Ba5 {[%clk 0:01:03]} 25. Re3 {[%clk 0:02:07]}  Bb6 {[%clk 0:00:58]} 26. Nf5 {[%clk 0:01:56]}  Bxd4 {[%clk 0:00:57]} 27. Rxd4 {[%clk 0:01:56]}  Nc5 {[%clk 0:00:38]} 28. Rg3 {[%clk 0:01:51]}  Ng6 {[%clk 0:00:18]} 29. N1e3 {[%clk 0:01:48]}  Ne6 {[%clk 0:00:17]} 30. Rd1 {[%clk 0:01:48]}  Ng5 {[%clk 0:00:16]} 31. h4 {[%clk 0:01:34]}  Nxe4 {[%clk 0:00:11]} 32. Bxe4 {[%clk 0:01:34]}  Rxe4 {[%clk 0:00:11]} 33. h5 {[%clk 0:01:34]}  Bxf5 {[%clk 0:00:11]} 34. Nxf5 {[%clk 0:01:34]}  Re5 {[%clk 0:00:09]} 35. Nxh6+ {[%clk 0:01:29]}  gxh6 {[%clk 0:00:09]} 36. hxg6 {[%clk 0:01:30]}  fxg6 {[%clk 0:00:06]} 37. Rxg6+ {[%clk 0:01:28]}  Kh7 {[%clk 0:00:07]} 38. Rg3 {[%clk 0:01:26]}  Rde8 {[%clk 0:00:05]} 39. Qc2+ {[%clk 0:01:23]}  Kh8 {[%clk 0:00:05]} 40. Qg6 {[%clk 0:01:20]}  Re1+ {[%clk 0:00:05]} 41. Rxe1 {[%clk 0:01:21]}  Rxe1+ {[%clk 0:00:06]} 42. Kh2 {[%clk 0:01:21]}  Re5 {[%clk 0:00:04]} 43. f4 {[%clk 0:01:16]}  Re7 {[%clk 0:00:03]} 44. f5 {[%clk 0:01:15]}  Rf7 {[%clk 0:00:04]} 45. Rf3 {[%clk 0:01:12]}  Rf6 {[%clk 0:00:04]} 46. Qh5 {[%clk 0:01:12]}  Qf7 {[%clk 0:00:03]} 47. Qg4 {[%clk 0:01:10]}  Kh7 {[%clk 0:00:03]} 48. Qe4 {[%clk 0:01:09]}  Qg7 {[%clk 0:00:03]} 49. g4 {[%clk 0:01:07]}  Qg5 {[%clk 0:00:03]} 50. Rh3 {[%clk 0:00:56]}  Qd2+ {[%clk 0:00:03]} 51. Kg3 {[%clk 0:00:54]}  Qc3+ {[%clk 0:00:02]} 52. Kh4 {[%clk 0:00:55]}  Rf7 {[%clk 0:00:03]} 53. Rxc3 {[%clk 0:00:54]} 1-0


[Site "https://www.chess.com"]

[Event "Titled Tuesday Blitz February 07 Early 2023"]
[White "Skibbe, Willi"]
[Black "Chernobay, Artem"]
[WhiteFideId "4682190"]
[BlackFideId "4167406"]
[WhiteElo "2176"]
[BlackElo "2484"]
[Result "0-1"]
[Round "02"]
[TimeControl "180+2"]
[Date "2023.02.07"]
[WhiteClock "0:02:11"]
[BlackClock "0:02:00"]

1. d4 {[%clk 0:03:00]}  Nf6 {[%clk 0:02:57]} 2. e3 {[%clk 0:03:01]}  g6 {[%clk 0:02:54]} 3. Nf3 {[%clk 0:02:59]}  Bg7 {[%clk 0:02:54]} 4. Be2 {[%clk 0:02:58]}  O-O {[%clk 0:02:54]} 5. O-O {[%clk 0:02:58]}  c5 {[%clk 0:02:54]} 6. b3 {[%clk 0:02:51]}  cxd4 {[%clk 0:02:51]} 7. exd4 {[%clk 0:02:51]}  d5 {[%clk 0:02:51]} 8. Bb2 {[%clk 0:02:49]}  Nc6 {[%clk 0:02:52]} 9. Nbd2 {[%clk 0:02:49]}  Ne4 {[%clk 0:02:45]} 10. Ne5 {[%clk 0:02:41]}  Bf5 {[%clk 0:02:39]} 11. f3 {[%clk 0:02:31]}  Nxd2 {[%clk 0:02:31]} 12. Qxd2 {[%clk 0:02:30]}  Rc8 {[%clk 0:02:12]} 13. Nxc6 {[%clk 0:02:22]}  Rxc6 {[%clk 0:02:11]} 14. c4 {[%clk 0:02:14]}  dxc4 {[%clk 0:02:06]} 15. bxc4 {[%clk 0:02:13]}  Rd6 {[%clk 0:02:06]} 16. d5 {[%clk 0:02:11]}  Qb6+ {[%clk 0:02:00]} 0-1


[Site "https://www.chess.com"]

[Event "Titled Tuesday Blitz February 07 Early 2023"]
[White "Afanasieva, Alexandra"]
[Black "Skvortsov, Andrei"]
[WhiteFideId "34126926"]
[BlackFideId "24108600"]
[WhiteElo "1857"]
[BlackElo "2313"]
[Result "0-1"]
[Round "02"]
[TimeControl "180+2"]
[Date "2023.02.07"]
[WhiteClock "0:00:02"]
[BlackClock "0:00:30"]

1. e4 {[%clk 0:03:00]}  d5 {[%clk 0:02:46]} 2. exd5 {[%clk 0:03:00]}  Qxd5 {[%clk 0:02:47]} 3. Nc3 {[%clk 0:03:01]}  Qe5+ {[%clk 0:02:45]} 4. Qe2 {[%clk 0:02:56]}  Nc6 {[%clk 0:02:42]} 5. Nf3 {[%clk 0:02:55]}  Qa5 {[%clk 0:02:33]} 6. Qb5 {[%clk 0:02:43]}  Bf5 {[%clk 0:02:20]} 7. Qxb7 {[%clk 0:02:30]}  Rd8 {[%clk 0:02:03]} 8. Qxc6+ {[%clk 0:02:25]}  Bd7 {[%clk 0:02:04]} 9. Qc4 {[%clk 0:02:15]}  Nf6 {[%clk 0:02:00]} 10. d4 {[%clk 0:02:08]}  e6 {[%clk 0:02:01]} 11. Bf4 {[%clk 0:02:00]}  c5 {[%clk 0:02:00]} 12. Be2 {[%clk 0:01:38]}  Be7 {[%clk 0:02:00]} 13. O-O {[%clk 0:01:35]}  O-O {[%clk 0:02:00]} 14. Rad1 {[%clk 0:01:26]}  Rc8 {[%clk 0:02:00]} 15. d5 {[%clk 0:01:07]}  exd5 {[%clk 0:01:58]} 16. Nxd5 {[%clk 0:01:07]}  Nxd5 {[%clk 0:01:58]} 17. Qxd5 {[%clk 0:01:07]}  Be6 {[%clk 0:01:58]} 18. Qh5 {[%clk 0:01:02]}  Qxa2 {[%clk 0:01:58]} 19. Be5 {[%clk 0:00:48]}  Qa4 {[%clk 0:01:31]} 20. Bd3 {[%clk 0:00:42]}  h6 {[%clk 0:01:24]} 21. h3 {[%clk 0:00:36]}  c4 {[%clk 0:01:23]} 22. Be2 {[%clk 0:00:21]}  Qb5 {[%clk 0:01:22]} 23. Nd4 {[%clk 0:00:17]}  Qb6 {[%clk 0:01:09]} 24. Nxe6 {[%clk 0:00:17]}  Qxe6 {[%clk 0:01:10]} 25. f4 {[%clk 0:00:17]}  f6 {[%clk 0:00:57]} 26. Bg4 {[%clk 0:00:16]}  Qb6+ {[%clk 0:00:58]} 27. Bd4 {[%clk 0:00:16]}  Bc5 {[%clk 0:00:59]} 28. Bxc8 {[%clk 0:00:07]}  Bxd4+ {[%clk 0:00:58]} 29. Kh1 {[%clk 0:00:07]}  Bxb2 {[%clk 0:00:51]} 30. Qd5+ {[%clk 0:00:07]}  Kh8 {[%clk 0:00:51]} 31. Bf5 {[%clk 0:00:07]}  Bc3 {[%clk 0:00:48]} 32. Be4 {[%clk 0:00:08]}  f5 {[%clk 0:00:47]} 33. Bxf5 {[%clk 0:00:06]}  Qf6 {[%clk 0:00:46]} 34. Be4 {[%clk 0:00:06]}  a5 {[%clk 0:00:47]} 35. Qd6 {[%clk 0:00:03]}  a4 {[%clk 0:00:41]} 36. Qxf6 {[%clk 0:00:03]}  Bxf6 {[%clk 0:00:40]} 37. Rd5 {[%clk 0:00:04]}  a3 {[%clk 0:00:41]} 38. Ra5 {[%clk 0:00:04]}  Bb2 {[%clk 0:00:41]} 39. Rd1 {[%clk 0:00:03]}  g5 {[%clk 0:00:42]} 40. fxg5 {[%clk 0:00:02]}  hxg5 {[%clk 0:00:40]} 41. Bd5 {[%clk 0:00:02]}  Rc8 {[%clk 0:00:39]} 42. Bxc4 {[%clk 0:00:02]}  Rxc4 {[%clk 0:00:40]} 43. Rd7 {[%clk 0:00:02]}  Rc8 {[%clk 0:00:39]} 44. Raa7 {[%clk 0:00:03]}  Kg8 {[%clk 0:00:39]} 45. g4 {[%clk 0:00:01]}  Kf8 {[%clk 0:00:37]} 46. Rf7+ {[%clk 0:00:01]}  Ke8 {[%clk 0:00:35]} 47. Rae7+ {[%clk 0:00:01]}  Kd8 {[%clk 0:00:35]} 48. Ra7 {[%clk 0:00:02]}  Ke8 {[%clk 0:00:35]} 49. Rfe7+ {[%clk 0:00:02]}  Kf8 {[%clk 0:00:35]} 50. Rf7+ {[%clk 0:00:01]}  Kg8 {[%clk 0:00:35]} 51. Rfd7 {[%clk 0:00:02]}  Kf8 {[%clk 0:00:34]} 52. Kg2 {[%clk 0:00:02]}  Ke8 {[%clk 0:00:34]} 53. Re7+ {[%clk 0:00:03]}  Kf8 {[%clk 0:00:34]} 54. Rf7+ {[%clk 0:00:03]}  Kg8 {[%clk 0:00:33]} 55. Rfb7 {[%clk 0:00:04]}  Rxc2+ {[%clk 0:00:33]} 56. Kf3 {[%clk 0:00:04]}  Rc8 {[%clk 0:00:34]} 57. Ke4 {[%clk 0:00:05]}  Rf8 {[%clk 0:00:33]} 58. Rc7 {[%clk 0:00:03]}  Kh8 {[%clk 0:00:31]} 59. Rcb7 {[%clk 0:00:02]}  Kg8 {[%clk 0:00:31]} 60. Rb6 {[%clk 0:00:02]}  Rf4+ {[%clk 0:00:29]} 61. Kd5 {[%clk 0:00:02]}  Rf8 {[%clk 0:00:30]} 62. Ke6 {[%clk 0:00:01]}  Rf6+ {[%clk 0:00:30]} 63. Kd7 {[%clk 0:00:02]}  Rxb6 {[%clk 0:00:30]} 0-1


[Site "https://www.chess.com"]